fUSD/lending_fUSD_20241016
["ID","MTS","AMOUNT","RATE_DAILY","PERIOD"]
[340335563,1729061445085,-1128.0,0.00024657,3]
[340335564,1729061445094,-1128.22302585,0.00024657,3]
[340335565,1729061445104,-150.0,0.00024657,2]
[340335566,1729061445113,-246.2,0.00024658,4]
[340335567,1729061445123,-500.0,0.00024658,7]
[340335568,1729061445132,-897.29,0.00024721,30]
[340335569,1729061445141,-566.27,0.00024737,2]
[340335570,1729061445153,-528.46301375,0.00024739,2]
[340335571,1729061445162,-175.7181379,0.000248,3]
[340335572,1729061445172,-1853.5539142,0.000248,2]
[340335573,1729061445181,-150.0,0.00024807,4]
[340335574,1729061445191,-555.61539459,0.00024833,4]
[340335575,1729061445200,-255.44409801,0.00024833,4]
[340335576,1729061445210,-374.55720706,0.0002487,2]
[340335577,1729061445219,-500.0,0.00024879,2]
[340335578,1729061445229,-500.0,0.00024879,2]
[340335579,1729061445238,-500.0,0.00024879,2]
[340335580,1729061445247,-423.33756877,0.00024879,2]
[340335581,1729061445257,-500.0,0.00024879,2]
[340335582,1729061445266,-500.0,0.00024879,2]
[340335583,1729061445276,-332.27802836,0.00024879,2]
[340335584,1729061445287,-52219.03723483,0.0002488,2]
[340335585,1729061445307,-3680.27212058,0.0002488,2]
[340335586,1729061445318,-1826.19952413,0.0002488,2]
[340335587,1729061445330,-547.23187088,0.0002488,2]
[340335589,1729061445342,-275.96458678,0.0002488,2]
[340335591,1729061445365,-5038.76056,0.0002488,2]
[340335592,1729061445377,-6000.0,0.0002488,2]
[340335593,1729061445397,-1032.6158292,0.0002488,2]
[340335594,1729061445409,-2616.89999991,0.0002488,2]
[340335595,1729061445428,-3457.06039811,0.0002488,2]
[340335596,1729061445443,-837.95731269,0.0002488,2]
[340335597,1729061445486,150.0,0.00010981,2]
[340335598,1729061445634,-305.91900984,0.00012131,2]
[340335599,1729061445647,-1694.08099016,0.00012131,2]
[340335600,1729061445657,-45474.59208911,0.0002488,2]
[340335601,1729061445688,-158.96,0.000116,2]
[340335602,1729061445697,-424.17,0.000116,2]
[340335603,1729061445707,-43320.45394859,0.0002488,2]
[340335604,1729061445716,-16761.42627834,0.0002488,2]
[340335605,1729061445725,-864.03029084,0.0002488,2]
[340335606,1729061445736,-32700.00002493,0.0002488,2]
[340335607,1729061445754,-12435.6494709,0.00011026,2]
[340335608,1729061445763,-6536.40203942,0.0002488,2]
[340335632,1729061446422,-1203.491268,0.0002488,2]
[340335633,1729061446433,-435.93874686,0.0002488,2]
[340335634,1729061546589,150.0,0.00011,2]
[340335635,1729061602457,500.0,0.00010998,2]
[340335636,1729061649737,170.57,0.00026025,120]
[340335637,1729061662888,550.0,0.0001,2]
[340335641,1729061853773,150.0,0.00011,2]
[340335647,1729061882799,158.92,0.00010959,2]
[340335670,1729061962891,-150.0,0.00011271,2]
[340335671,1729061962916,-150.0,0.000113,2]
[340335672,1729061977554,-1894.48,0.00011301,2]
[340335673,1729061977574,-1448.72,0.00011301,2]
[340335674,1729062160434,150.0,0.00011,2]
[340335677,1729062323917,600.0,0.00011,2]
[340335686,1729062465577,150.0,0.00011,2]
[340335688,1729062538383,161.46,0.00010959,2]
[340335696,1729062631705,-429.691158,0.00011243,2]
[340335697,1729062631715,-137.448842,0.000113,2]
[340335698,1729062631726,-12.551158,0.000113,2]
[340335699,1729062631736,-2817.8587,0.00011301,2]
[340335700,1729062631745,-15614.44655583,0.00011301,2]
[340335701,1729062631757,-10211.26134417,0.00011301,2]
[340335702,1729062631767,-500.0,0.00011401,2]
[340335703,1729062631776,-500.0,0.00011401,2]
[340335704,1729062631785,-500.0,0.00011401,2]
[340335705,1729062631794,-500.0,0.00011401,2]
[340335706,1729062631803,-500.0,0.00011401,2]
[340335707,1729062631812,-500.0,0.00011401,2]
[340335708,1729062631822,-500.0,0.00011401,2]
[340335709,1729062631831,-500.0,0.00011401,2]
[340335710,1729062631840,-2913.508842,0.00011401,2]
[340335711,1729062632022,-2751.0,0.00011507,2]
[340335712,1729062632032,-600.0,0.00012,2]
[340335713,1729062632042,-500.24885129,0.000121,2]
[340335714,1729062632051,-500.0,0.000121,2]
[340335715,1729062632060,-500.0,0.00012328,2]
[340335716,1729062632069,-500.0,0.00012328,2]
[340335717,1729062632079,-500.0,0.00012328,2]
[340335718,1729062632088,-500.0,0.00012328,2]
[340335719,1729062632097,-500.0,0.00012328,2]
[340335720,1729062632107,-500.0,0.00012328,2]
[340335721,1729062632119,-600.0,0.00012329,2]
[340335722,1729062632129,-600.0,0.00012329,2]
[340335723,1729062632138,-600.0,0.00012329,2]
[340335724,1729062632147,-600.0,0.00012329,2]
[340335725,1729062632157,-600.0,0.00012329,2]
[340335726,1729062632166,-600.0,0.00012329,2]
[340335727,1729062632175,-600.0,0.00012329,2]
[340335728,1729062632185,-600.0,0.00012329,2]
[340335729,1729062632194,-600.0,0.00012329,2]
[340335730,1729062632203,-600.0,0.00012329,2]
[340335731,1729062632217,-555.573,0.00012375,2]
[340335732,1729062632226,-5883.0,0.00012379,2]
[340335733,1729062632235,-8833.618,0.00012379,2]
[340335734,1729062632245,-150.0,0.00012379,2]
[340335735,1729062632255,-179.99,0.00012893,2]
[340335736,1729062632264,-1000.0,0.00012973,2]
[340335737,1729062632274,-650.0,0.00014,2]
[340335738,1729062632283,-13771.30589864,0.00014778,2]
[340335739,1729062632296,-272.1846872,0.00014778,2]
[340335740,1729062632309,-964.46147219,0.00014778,2]
[340335741,1729062632320,-312.02099594,0.00014778,2]
[340335744,1729062637838,-1084.05550779,0.00014778,2]
[340335745,1729062637887,-3970.19115337,0.00014778,2]
[340335747,1729062637930,-5124.74242063,0.00014778,2]
[340335748,1729062637969,-1000.0,0.00014778,2]
[340335749,1729062638104,-2424.99999999,0.00014778,2]
[340335750,1729062638116,-5906.63080696,0.00014778,2]
[340335751,1729062638243,-3626.60999139,0.00014778,2]
[340335752,1729062638253,-4293.0,0.00015,2]
[340335753,1729062638266,-700.0,0.00016,2]
[340335754,1729062638275,-155.86,0.00016438,2]
[340335755,1729062638284,-284.25,0.000181,7]
[340335756,1729062638294,-4340.95160885,0.00019043,2]
[340335757,1729062638305,-384.161,0.0001949,2]
[340335758,1729062638315,-167.687,0.0001949,2]
[340335759,1729062638324,-500.0,0.0001949,2]
[340335760,1729062638333,-2195.068014,0.0002,2]
[340335761,1729062638342,-382.06,0.0002,7]
[340335762,1729062638352,-1886.76052086,0.00020287,2]
[340335763,1729062638362,-371.34,0.00020333,2]
[340335764,1729062638374,-166.99,0.00021719,2]
[340335765,1729062638384,-1000.0,0.00021915,2]
[340335766,1729062638394,-177.11,0.00021918,2]
[340335767,1729062638403,-157.85,0.00021918,2]
[340335768,1729062638413,-250.0,0.00021957,2]
[340335769,1729062638423,-457.48,0.00021992,2]
[340335770,1729062638432,-250.0,0.0002204,2]
[340335771,1729062638442,-815.22,0.00022137,30]
[340335772,1729062638451,-178.09,0.00022189,2]
[340335773,1729062638460,-3000.0,0.000225,2]
[340335774,1729062638469,-371.34,0.00022597,2]
[340335776,1729062638479,-167.44,0.00022918,2]
[340335778,1729062638488,-236.87,0.000231,14]
[340335779,1729062638497,-170.57,0.00023133,2]
[340335781,1729062638507,-167.0,0.00023151,2]
[340335783,1729062638516,-178.09,0.00023298,2]
[340335785,1729062638525,-182.33830334,0.000233,2]
[340335787,1729062638534,-300.0,0.00023389,2]
[340335789,1729062638544,-167.0,0.00023915,2]
[340335791,1729062638553,-416.13653215,0.00023979,2]
[340335793,1729062638562,-416.13653215,0.00024318,2]
[340335795,1729062638571,-178.09,0.00024408,2]
[340335797,1729062638580,-166.99,0.00024475,2]
[340335799,1729062638589,-3682.35788155,0.0002458,2]
[340335801,1729062638599,-150.0,0.00024609,2]
[340335803,1729062638608,-150.0,0.00024611,2]
[340335805,1729062638618,-150.0,0.00024614,2]
[340335806,1729062638628,-3682.35788146,0.00024616,2]
[340335808,1729062638637,-150.0,0.00024622,2]
[340335810,1729062638647,-150.0,0.00024629,2]
[340335812,1729062638657,-150.0,0.00024631,2]
[340335814,1729062638666,-150.0,0.0002464,2]
[340335815,1729062638676,-703.53,0.00024641,3]
[340335816,1729062638685,-150.0,0.00024644,2]
[340335817,1729062638695,-416.13653215,0.0002465,2]
[340335818,1729062638705,-150.0,0.00024651,2]
[340335819,1729062638715,-3682.35788146,0.00024651,2]
[340335820,1729062638725,-150.0,0.00024652,2]
[340335821,1729062638734,-150.0,0.00024653,2]
[340335822,1729062638744,-1000.0,0.00024655,2]
[340335823,1729062638753,-150.0,0.00024655,2]
[340335824,1729062638763,-375.0,0.00024657,2]
[340335825,1729062638772,-500.0,0.00024658,7]
[340335826,1729062638781,-150.0,0.0002466,2]
[340335827,1729062638790,-150.0,0.00024667,2]
[340335828,1729062638800,-150.0,0.00024669,2]
[340335829,1729062638809,-150.0,0.0002467,2]
[340335830,1729062638818,-150.0,0.00024673,2]
[340335831,1729062638828,-167.0,0.0002468,2]
[340335832,1729062638837,-5519.1887,0.0002468,2]
[340335833,1729062638847,-15226.6994,0.0002468,2]
[340335834,1729062638856,-150.0,0.0002468,2]
[340335835,1729062638866,-1934.5917,0.0002468,2]
[340335836,1729062638876,-1000.0,0.0002468,2]
[340335837,1729062638885,-150.0,0.00024681,2]
[340335838,1729062638894,-3682.35788146,0.00024687,2]
[340335839,1729062638905,-150.0,0.00024687,2]
[340335840,1729062638914,-150.0,0.00024687,2]
[340335841,1729062638925,-150.0,0.00024688,2]
[340335842,1729062638934,-150.0,0.00024688,2]
[340335843,1729062638944,-150.0,0.00024702,2]
[340335844,1729062638953,-150.0,0.00024712,2]
[340335845,1729062638963,-151.0,0.00024714,2]
[340335846,1729062638972,-150.0,0.00024714,2]
[340335847,1729062638982,-150.0,0.00024714,2]
[340335848,1729062638991,-150.0,0.00024715,2]
[340335849,1729062639000,-815.22,0.00024721,30]
[340335850,1729062639009,-3682.35788146,0.00024722,2]
[340335851,1729062639019,-150.0,0.00024724,2]
[340335852,1729062639028,-150.0,0.00024725,2]
[340335853,1729062639037,-150.0,0.00024729,2]
[340335854,1729062639047,-150.0,0.00024737,2]
[340335855,1729062639056,-150.0,0.00024739,2]
[340335856,1729062639065,-150.0,0.0002474,2]
[340335857,1729062639074,-150.0,0.00024753,2]
[340335858,1729062639084,-150.0,0.00024754,2]
[340335859,1729062639094,-150.0,0.00024755,2]
[340335860,1729062639103,-3682.35788146,0.00024758,2]
[340335861,1729062639113,-300.0,0.00024759,2]
[340335862,1729062639123,-150.0,0.0002476,2]
[340335863,1729062639133,-150.0,0.0002476,2]
[340335864,1729062639142,-150.0,0.00024764,2]
[340335865,1729062639151,-368.2174381,0.0002477,2]
[340335866,1729062639160,-1291.1581,0.0002477,2]
[340335867,1729062639170,-150.0,0.00024771,2]
[340335868,1729062639179,-150.0,0.00024772,2]
[340335869,1729062639187,-150.0,0.00024772,2]
[340335870,1729062639197,-150.0,0.00024772,2]
[340335871,1729062639206,-150.0,0.00024778,2]
[340335872,1729062639215,-400.0,0.00024779,2]
[340335873,1729062639228,-500.0,0.0002478,2]
[340335874,1729062639237,-47122.451,0.0002478,2]
[340335875,1729062639247,-217.0,0.0002478,2]
[340335876,1729062639257,-159.10157046,0.0002478,2]
[340335877,1729062639267,-7500.0,0.0002478,2]
[340335878,1729062639276,-169.2339584,0.0002478,2]
[340335879,1729062639285,-203.57418326,0.0002478,2]
[340335880,1729062639294,-150.0,0.00024781,2]
[340335881,1729062639304,-203.57418324,0.00024782,2]
[340335882,1729062639314,-289.39326791,0.00024782,2]
[340335883,1729062639324,-183.56954042,0.00024783,2]
[340335884,1729062639334,-203.57418324,0.00024783,2]
[340335885,1729062639344,-4229.59406906,0.00024783,2]
[340335886,1729062639354,-150.0,0.00024788,2]
[340335887,1729062639363,-3682.35788146,0.00024793,2]
[340335888,1729062639375,-150.0,0.00024802,2]
[340335889,1729062639384,-167.44,0.00024809,2]
[340335890,1729062639394,-150.0,0.00024811,2]
[340335891,1729062639403,-150.0,0.00024821,2]
[340335892,1729062639413,-3682.35788146,0.00024829,2]
[340335893,1729062639422,-150.0,0.0002483,2]
[340335894,1729062639431,-150.0,0.0002483,2]
[340335895,1729062639440,-150.0,0.0002484,2]
[340335896,1729062639450,-183.56954041,0.00024842,2]
[340335897,1729062639460,-150.0,0.00024842,2]
[340335898,1729062639470,-150.0,0.00024846,2]
[340335899,1729062639479,-150.0,0.00024853,2]
[340335900,1729062639490,-371.34,0.00024861,2]
[340335901,1729062639500,-150.0,0.00024861,2]
[340335902,1729062639509,-3682.35788146,0.00024864,2]
[340335903,1729062639519,-500.0,0.00024869,2]
[340335904,1729062639528,-672.500001,0.00024869,2]
[340335905,1729062639538,-500.0,0.00024869,2]
[340335906,1729062639549,-312.50143293,0.00024869,2]
[340335907,1729062639558,-500.0,0.00024869,2]
[340335908,1729062639567,-355.03716842,0.00024869,2]
[340335909,1729062639577,-500.0,0.00024869,2]
[340335910,1729062639587,-500.0,0.00024869,2]
[340335911,1729062639598,-500.0,0.00024869,2]
[340335912,1729062639607,-500.0,0.00024869,2]
[340335913,1729062639617,-541.7912458,0.00024869,2]
[340335914,1729062639628,-534.49630319,0.00024869,2]
[340335915,1729062639638,-500.0,0.00024869,2]
[340335916,1729062639647,-519.30466338,0.00024869,2]
[340335918,1729062639656,-500.0,0.00024869,2]
[340335919,1729062639666,-75436.1843325,0.0002487,5]
[340335920,1729062639675,-343.39898002,0.0002487,2]
[340335922,1729062639685,-7543.61843325,0.00024871,5]
[340335923,1729062639694,-150.0,0.00024872,2]
[340335925,1729062639704,-183.99469233,0.00024873,2]
[340335926,1729062639713,-12572.6973888,0.00024873,5]
[340335927,1729062639723,-500.0,0.00024879,2]
[340335928,1729062639732,-172.87172767,0.00024879,2]
[340335929,1729062639742,-500.0,0.00024879,2]
[340335930,1729062639751,-500.0,0.00024879,2]
[340335931,1729062639761,-366.41825085,0.00024879,2]
[340335932,1729062639771,-506.11323261,0.00024879,2]
[340335933,1729062639780,-500.0,0.00024879,2]
[340335934,1729062639790,-566.0,0.0002488,2]
[340335935,1729062639800,-695652.3989574,0.0002488,2]
[340335936,1729062639809,-48200.44867061,0.0002488,2]
[340335937,1729062639819,-340.4253907,0.0002488,4]
[340335938,1729062639828,-150.0,0.0002488,2]
[340335939,1729062639837,-154.13701013,0.0002488,2]
[340335940,1729062639846,-155.82089978,0.0002488,4]
[340335941,1729062639856,-150.0,0.0002488,2]
[340335942,1729062639866,-276.28476623,0.0002488,2]
[340335943,1729062639876,-150.0,0.0002488,2]
[340335944,1729062639885,-150.0,0.0002488,2]
[340335945,1729062639894,-150.0,0.0002488,2]
[340335946,1729062639904,-150.0,0.0002488,2]
[340335947,1729062639914,-151.99277283,0.0002488,2]
[340335948,1729062639923,-150.0,0.0002488,2]
[340335949,1729062639933,-164.84019004,0.0002488,2]
[340335950,1729062639942,-150.0,0.0002488,2]
[340335951,1729062639952,-150.0,0.0002488,2]
[340335952,1729062639962,-8211.82660057,0.0002488,2]
[340335953,1729062639971,-50894.8374826,0.00024881,2]
[340335954,1729062639981,-4165.1100546,0.00024881,2]
[340335955,1729062639989,-9242.3803379,0.00024881,2]
[340335956,1729062639999,-1528.853954,0.00024881,2]
[340335957,1729062640008,-2439.1791626,0.00024881,2]
[340335958,1729062640017,-42043.7615179,0.00024883,2]
[340335959,1729062640027,-33192.6855533,0.00024883,2]
[340335960,1729062640036,-3440.7594658,0.00024883,2]
[340335961,1729062640046,-2716.4088771,0.00024883,2]
[340335962,1729062640055,-1992.0582883,0.00024883,2]
[340335963,1729062640064,-7643.1087152,0.00024883,2]
[340335964,1729062640074,-6043.8370925,0.00024883,2]
[340335965,1729062640083,-4444.5654698,0.00024883,2]
[340335966,1729062640092,-1289.930933,0.00024883,2]
[340335967,1729062640102,-1051.0079119,0.00024883,2]
[340335968,1729062640111,-812.0848909,0.00024883,2]
[340335969,1729062640121,-2057.9942542,0.00024883,2]
[340335970,1729062640131,-1676.8093458,0.00024883,2]
[340335971,1729062640140,-1295.6244374,0.00024883,2]
[340335972,1729062640150,-332.22095072,0.00024883,2]
[340335973,1729062640160,-1098.02073102,0.00024898,5]
[340335974,1729062640170,-1267.7076996,0.00024898,2]
[340335975,1729062640179,-2845.2938471,0.00024898,2]
[340335976,1729062640189,-573.1618698,0.00024898,2]
[340335977,1729062640199,-914.4395291,0.00024898,2]
[340335978,1729062640209,-2000.0,0.000249,2]
[340335979,1729062640220,-2000.0,0.000249,2]
[340335980,1729062640230,-2000.0,0.000249,2]
[340335981,1729062640239,-2000.0,0.000249,2]
[340335982,1729062640249,-2021.2019,0.000249,2]
[340335983,1729062640259,-5800.0,0.000249,2]
[340335984,1729062640269,-86729.49052387,0.000249,2]
[340335985,1729062640278,-2859.45461321,0.000249,2]
[340335986,1729062640287,-183.56954041,0.000249,2]
[340335987,1729062640299,-169.23395839,0.000249,2]
[340335988,1729062640308,-3682.35788146,0.000249,2]
[340335989,1729062640317,-322.60009065,0.000249,2]
[340335990,1729062640327,-5199.52652527,0.000249,2]
[340335991,1729062640336,-14942.18643746,0.000249,2]
[340335992,1729062640346,-733.2478197,0.000249,2]
[340335993,1729062640355,-24341.6095886,0.00024915,2]
[340335994,1729062640365,-334.2388488,0.00024915,2]
[340335995,1729062640375,-533.2546207,0.00024915,2]
[340335996,1729062640385,-15490.533624,0.00024932,2]
[340335997,1729062640394,-1246.0222244,0.00024948,2]
[340335998,1729062640404,-543.3571108,0.00024956,2]
[340335999,1729062640413,-6639.4576593,0.00024965,2]
[340336000,1729062640423,-251.49932474,0.0002497,2]
[340336001,1729062640432,-170.49054466,0.00024983,3]
[340336002,1729062640441,-5687.19697719,0.0002499,2]
[340336003,1729062640450,-343.39898002,0.0002499,2]
[340336004,1729062640459,-343.39898002,0.0002499,2]
[340336005,1729062640469,-2000.0,0.00024999,2]
[340336006,1729062640479,-2000.0,0.00024999,2]
[340336007,1729062640488,-22463.00587669,0.00025,5]
[340336008,1729062640706,-368.21743806,0.00024789,2]
[340336009,1729062640715,-219.9229428,0.00024879,2]
[340336010,1729062640725,-54.64145494,0.00025,5]
[340336011,1729062640763,-501.17066642,0.00024879,2]
[340336012,1729062640773,-500.0,0.00024879,2]
[340336013,1729062640783,-500.0,0.00024879,2]
[340336014,1729062640792,-193.12439468,0.00024879,2]
[340336015,1729062640802,-500.0,0.00024879,2]
[340336016,1729062640812,-40422.68048543,0.00025,5]
[340336017,1729062640827,-468.5,0.00024879,2]
[340336018,1729062640839,-31.5,0.00024879,2]
[340336019,1729062640848,-303.5,0.00025,5]
[340336028,1729062642751,-275.01000006,0.00024869,2]
[340336029,1729062642793,-224.98999994,0.00024869,2]
[340336030,1729062642803,-500.0,0.00024879,2]
[340336031,1729062642813,-433.36474316,0.00024879,2]
[340336032,1729062642827,-519.0,0.00024879,2]
[340336033,1729062642837,-209444.18241275,0.00025,5]
[340336034,1729062642847,-127905.73339084,0.00025,3]
[340336035,1729062642939,-3177.3396,0.00025,3]
[340336036,1729062642951,-362.32425236,0.00025,3]
[340336037,1729062643074,-4534.5704,0.00025,3]
[340336039,1729062645639,-368.21743806,0.00024807,2]
[340336040,1729062645649,-618.0,0.00025,2]
[340336041,1729062645659,-585.87039664,0.00025,3]
[340336042,1729062646980,-87075.5,0.00025,3]
[340336043,1729062646991,-902.39616762,0.00025,3]
[340336045,1729062770344,150.0,0.00011,2]
[340336046,1729062793375,153.00000026,0.000109,2]
[340337124,1729063075979,150.0,0.00011,2]
[340337427,1729063156446,158.82,0.00010959,2]
[340338033,1729063380465,150.0,0.00011,2]
[340338034,1729063508780,5237254.89150811,0.00011,2]
[340338037,1729063530438,382.09390524,0.000101,2]
[340338038,1729063535541,230.07390305,0.0001,2]
[340338039,1729063562274,161.35608886,9e-05,2]
[340338045,1729063637388,205.0,9.8e-05,2]
[340338046,1729063641572,246.40772003,0.000101,2]
[340338053,1729063676261,363.97598723,0.0001,2]
[340338063,1729063714781,212.19871248,0.0001,2]
[340338109,1729063831834,-252.8748098,0.000108,2]
[340338110,1729063831843,-8.52176905,0.000109,2]
[340338111,1729063831854,-200.4261998,0.000109,2]
[340338112,1729063831863,-220.3898002,0.000109,2]
[340338113,1729063831884,-1784.09006492,0.000109,2]
[340338114,1729063831893,-190.73243508,0.000109,2]
[340338119,1729063832025,-211.95975202,0.000109,2]
[340338120,1729063832035,-2904.39934071,0.000109,2]
[340338121,1729063832046,-155.49,0.00010959,2]
[340338122,1729063832057,-500.0,0.00010973,2]
[340338123,1729063832067,-177.20452617,0.0001099,2]
[340338124,1729063832077,-177.20452617,0.0001099,2]
[340338125,1729063832087,-177.20452617,0.0001099,2]
[340338126,1729063832097,-218.93350501,0.00010997,2]
[340338127,1729063832107,-523.42068814,0.00010998,2]
[340338131,1729063832281,-2613.10872722,0.00010998,2]
[340338132,1729063832293,-1298.29851612,0.00010998,2]
[340338133,1729063832317,-3831.16040795,0.00010998,2]
[340338134,1729063832328,-510.16317385,0.00010998,2]
[340338135,1729063832338,-150.0,0.00010998,2]
[340338136,1729063832347,-1.66357537,0.00010999,2]
[340338138,1729063832359,-544.52567651,0.00010999,2]
[340338139,1729063832371,-453.81074812,0.00010999,2]
[340338141,1729063832380,-30835.28925224,0.00010999,2]
[340338143,1729063832391,-792.5901174,0.00010999,2]
[340338145,1729063832407,-1830.0504098,0.00010999,2]
[340338146,1729063832418,-573.88723251,0.00010999,2]
[340338147,1729063832430,-598.97184433,0.00010999,2]
[340338149,1729063837930,-1209.62717003,0.00010999,2]
[340338150,1729063837942,-6671.76743209,0.00010999,2]
[340338151,1729063838071,-990.63368508,0.00010999,2]
[340338152,1729063838210,-17335.2727244,0.00010999,2]
[340338153,1729063838222,-1164.29096619,0.00010999,2]
[340338154,1729063838233,-2278.66069871,0.00010999,2]
[340338155,1729063838347,-29335.63579844,0.00010999,2]
[340338156,1729063838357,-150.7863319,0.00010999,2]
[340338157,1729063838367,-489.46633911,0.00010999,2]
[340338158,1729063838377,-206.12114954,0.00010999,2]
[340338159,1729063838386,-533.30922156,0.00010999,2]
[340338160,1729063838396,-194.82046045,0.00011,2]
[340338161,1729063838405,-1011254.25815915,0.00011,2]
[340338162,1729063840184,-2652.27044909,0.00011,2]
[340338163,1729063840196,-2534.95284978,0.00011,2]
[340338168,1729063843751,-329.02421011,0.00010999,2]
[340338169,1729063843761,-405.97578989,0.00011,2]
[340338170,1729063845865,-12038.98035861,0.00011,2]
[340338171,1729063845906,-5800.59913318,0.00011,2]
[340338172,1729063846147,-376.87925389,0.00011,2]
[340338175,1729063912946,-150.0,0.00010743,2]
[340338176,1729063912971,-500.0,0.00010999,2]
[340338177,1729063913000,-500.0,0.00010999,2]
[340338178,1729063913024,-500.0,0.00010999,2]
[340338179,1729063913048,-499.25779932,0.00010999,2]
[340338180,1729063913078,-85350.74220068,0.00011,2]
[340338190,1729064507480,366.29,0.00025864,120]
[340338191,1729064508967,442.94987557,9.959e-05,2]
[340338244,1729064869238,193.11,9.048e-05,2]
[340338245,1729064936879,200.0,8.823e-05,2]
[340338246,1729065007540,150.0,8.823e-05,2]
[340338247,1729065007723,150.0,8.823e-05,2]
[340338248,1729065007896,150.0,8.823e-05,2]
[340338249,1729065008082,150.0,8.823e-05,2]
[340338250,1729065008272,150.0,8.823e-05,2]
[340338251,1729065008549,150.0,8.823e-05,2]
[340338252,1729065008721,150.0,8.823e-05,2]
[340338253,1729065008909,150.0,8.823e-05,2]
[340338254,1729065009082,150.0,8.823e-05,2]
[340338255,1729065009257,150.0,8.823e-05,2]
[340338256,1729065009532,150.0,8.823e-05,2]
[340338257,1729065009700,150.0,8.823e-05,2]
[340338258,1729065009873,150.0,8.823e-05,2]
[340338259,1729065010085,150.0,8.823e-05,2]
[340338260,1729065010296,150.0,8.823e-05,2]
[340338261,1729065010535,150.0,8.823e-05,2]
[340338262,1729065010657,150.0,8.823e-05,2]
[340338263,1729065011130,150.0,8.823e-05,2]
[340338264,1729065011402,150.0,8.823e-05,2]
[340338265,1729065011656,150.0,8.823e-05,2]
[340338266,1729065011867,150.0,8.823e-05,2]
[340338267,1729065012065,177.46426446,8.823e-05,2]
[340338268,1729065032039,-250.0,0.00010458,2]
[340338269,1729065032048,-3584.18185265,0.00010509,2]
[340338270,1729065032100,-655.60712406,0.00010509,2]
[340338271,1729065032111,-1571.99124699,0.00010509,2]
[340338272,1729065032163,-8630.5353258,0.00010509,2]
[340338273,1729065032174,-2946.57874193,0.00010509,2]
[340338274,1729065032226,-8234.1906079,0.00010509,2]
[340338275,1729065032237,-5945.57433358,0.00010509,2]
[340338276,1729065032248,-14285.67344736,0.00010509,2]
[340338277,1729065032258,-200.0,0.00010543,2]
[340338278,1729065032267,-150.0,0.00010609,2]
[340338279,1729065032278,-179.48,0.00010629,2]
[340338280,1729065032287,-168.48,0.00010712,2]
[340338281,1729065032297,-200.07,0.00010714,2]
[340338282,1729065032306,-399.293,0.0001078,2]
[340338283,1729065032316,-165.877,0.0001078,2]
[340338284,1729065032325,-1906.16,0.00010795,2]
[340338285,1729065032334,-1319.679,0.000108,2]
[340338286,1729065032344,-3806.0061,0.00010899,2]
[340338287,1729065032353,-1893.68,0.00010899,2]
[340338288,1729065032363,-600.8192,0.000109,2]
[340338289,1729065032372,-1283.0,0.000109,2]
[340338290,1729065032387,-395.6864,0.000109,2]
[340338291,1729065032397,-366.44230039,0.000109,2]
[340338292,1729065032407,-339.22532723,0.00010945,2]
[340338293,1729065032416,-160.2,0.00010959,2]
[340338294,1729065032425,-288.84,0.00010959,2]
[340338295,1729065032435,-158.92,0.00010959,2]
[340338296,1729065032445,-240.7,0.00010959,2]
[340338297,1729065032455,-200.58,0.00010959,2]
[340338298,1729065032464,-167.15,0.00010959,2]
[340338299,1729065032474,-835.79,0.00010959,2]
[340338300,1729065032483,-337.73048859,0.00010973,2]